Workbook

Sheet Introductie
B3: Weight and Balance Spreadsheets
B5: Selecteer het juiste tabblad voor het toestel dat je gaat vliegen en controleer de meest recente weegrapporten bij de toestelpapieren. Vul de gewichten van de piloot, passagiers en bagage in.
B7: Versie 6-10-2021

Sheet Aquila A210 PH-DHA
A1: AQUILA AT01 PH-DHA
A31: VLIEGTUIG : | B31: AQUILA A210 | F31: Date of FLIGHT : | H31: =NOW() -> 2021-10-06T21:36:27.740
B32: ATO 1-245 | F32: Departure : | H32: EHKD
A33: Registration : | B33: PH-DHA | F33: VIA :
F34: Destination :
C36: Kg | D36: Arm | E36: M * Kg | F36: Address information:
A37: BEW incl. oil and unuseable fuel | C37: 517 | D37: Mtr | E37: 222 | F37: Naam | H37: Postcode | I37: Huis Nr
A38: LH Seat PIC (length < 1.75 m ) | D38: 0.45 | E38: =C38*D38 -> 0
A39: LH Seat PIC (length > 1.75 m ) | D39: 0.59 | E39: =C39*D39 -> 0
A41: RH Seat Pas (length < 1.75 m ) | D41: 0.45 | E41: =C41*D41 -> 0.00
A42: RH Seat Pas (lenght > 1.75 m ) | D42: 0.59 | E42: =C42*D42 -> 0
A44: baggage Area 1 (max 40 kg ) | D44: 1.30 | E44: =C44*D44 -> 0
A45: Zero FUEL Weight | C45: =SUM(C37:C44) -> 517 | E45: =SUM(E37:E44) -> 222 | F45: p CHECK in Moment Envelope
A46: Fuel ( LITERS ) | C46: =B46*0.75 -> 0 | D46: 0.33 | E46: =C46*D46 -> 0 | F46: Maximum useable 110 ltr * 0.75 = 82,5 kg
A47: Ramp Weight (Max. 750 Kg) | C47: =SUM(C45:C46) -> 517 | E47: =SUM(E45:E46) -> 222 | F47: 110LL = 0,72 Kg/Ltr - Euro95 = 0,75 kg/Ltr
A48: TAXI FUEL | B48: =7*0.25 -> 1.75 | C48: =B48*0.75 -> 1.3125 | D48: 0.33 | E48: =C48*D48 -> 0 | F48: Taxi Fuel Consumption 7 ltr per hour (5kg)
A49: Take-Off Weight (Max.750 Kg) | C49: =(C47-C48) -> 515.6875 | E49: =(E47-E48) -> 222 | F49: g CHECK in Moment Envelope
A50: Trip FUEL | C50: =B50*0.75 -> 0 | D50: 0.33 | E50: =C50*D50 -> 0 | F50: Trip Fuel Consumption: 17 ltr per Hour
A51: Landing Weight | C51: =C49-C50 -> 515.6875 | E51: =E49-E50 -> 222 | F51: ¨ CHECK in Moment Envelope
A53: Check latest M&B report in Aircraft ships papers for validity before using computed loadsheet.
A54: revision 06/10/2021 ACM

Sheet Aquila A210 PH-DHB
A1: AQUILA AT01 PH-DHB
A31: VLIEGTUIG : | B31: AQUILA A210 | F31: Date of FLIGHT : | H31: =NOW() -> 2021-10-06T21:36:27.740
B32: ATO 1-203 | F32: Departure : | H32: EHKD
A33: Registration : | B33: PH-DHB | F33: VIA :
F34: Destination :
C36: Kg | D36: Arm | E36: M * Kg | F36: Address information:
A37: BEW incl. oil and unuseable fuel | C37: 529.5 | D37: Mtr | E37: 233.5 | F37: Naam | H37: Postcode | I37: Huis Nr
A38: LH Seat PIC (length < 1.75 m ) | D38: 0.45 | E38: =C38*D38 -> 0
A39: LH Seat PIC (length > 1.75 m ) | D39: 0.59 | E39: =C39*D39 -> 0
A41: RH Seat Pas (length < 1.75 m ) | D41: 0.45 | E41: =C41*D41 -> 0.00
A42: RH Seat Pas (lenght > 1.75 m ) | D42: 0.59 | E42: =C42*D42 -> 0
A44: baggage Area 1 (max 40 kg ) | C44: 5 | D44: 1.30 | E44: =C44*D44 -> 7
A45: Zero FUEL Weight | C45: =SUM(C37:C44) -> 534.5 | E45: =SUM(E37:E44) -> 240 | F45: p CHECK in Moment Envelope
A46: Fuel ( LITERS ) | C46: =B46*0.75 -> 0 | D46: 0.33 | E46: =C46*D46 -> 0 | F46: Maximum useable 110 ltr * 0.75 = 82,5 kg
A47: Ramp Weight (Max. 750 Kg) | C47: =SUM(C45:C46) -> 534.5 | E47: =SUM(E45:E46) -> 240 | F47: 110LL = 0,72 Kg/Ltr - Euro95 = 0,75 kg/Ltr
A48: TAXI FUEL | B48: =7*0.25 -> 1.75 | C48: =B48*0.75 -> 1.3125 | D48: 0.33 | E48: =C48*D48 -> 0 | F48: Taxi Fuel Consumption 7 ltr per hour (5kg)
A49: Take-Off Weight (Max.750 Kg) | C49: =(C47-C48) -> 533.1875 | E49: =(E47-E48) -> 240 | F49: g CHECK in Moment Envelope
A50: Trip FUEL | C50: =B50*0.75 -> 0 | D50: 0.33 | E50: =C50*D50 -> 0 | F50: Trip Fuel Consumption: 17 ltr per Hour
A51: Landing Weight | C51: =C49-C50 -> 533.1875 | E51: =E49-E50 -> 240 | F51: ¨ CHECK in Moment Envelope
A53: Check latest M&B report in Aircraft ships papers for validity before using computed loadsheet.
A54: revision 06/10/2021 ACM

Sheet Cessna C172 PH-DHD
A1: Cessna 172N Skyhawk PH-DHD
A31: VLIEGTUIG : | B31: Cessna C172N Skyhawk | F31: Date of FLIGHT : | H31: =NOW() -> 2021-10-06T21:36:27.740
B32: 172-69065 | F32: Departure : | H32: EHKD
A33: Registration : | B33: PH-DHD | F33: VIA :
F34: Destination :
C36: Kg | D36: Arm | E36: M * Kg | F36: Address information:
A37: BEW incl. oil and unuseable fuel | C37: 695.8 | D37: Mtr | E37: 767.64 | F37: Naam | H37: Postcode | I37: Huis Nr
A38: LH Seat PIC (37") | D38: 0.94 | E38: =C38*D38 -> 0
A39: RH Seat Pas (37") | D39: 0.94 | E39: =C39*D39 -> 0
A41: LHR Seat Pas (73") | D41: 1.85 | E41: =C41*D41 -> 0.00
A42: RHR Seat Pas (73") | D42: 1.85 | E42: =C42*D42 -> 0
A44: baggage Area 1 (max 54 kg ) | D44: 2.41 | E44: =C44*D44 -> 0 | F44: Maximum combined baggage Area = 54 kg
A45: baggage Area 2 (max 22 kg ) | D45: 3.12 | E45: =C45*D45 -> 0
A46: Zero FUEL Weight | C46: =SUM(C37:C45) -> 695.8 | E46: =SUM(E37:E44) -> 768 | F46: p CHECK in Moment Envelope
A47: Fuel ( LITERS ) | C47: =B47*0.72 -> 0 | D47: 0.33 | E47: =C47*D47 -> 0 | F47: Maximum useable 164 ltr * 0.72 = 118 kg
A48: Ramp Weight (Max. 1043Kg) | C48: =SUM(C46:C47) -> 695.8 | E48: =SUM(E46:E47) -> 768 | F48: 110LL = 0,72 Kg/Ltr
A49: TAXI FUEL | C49: =B49*0.72 -> 0 | D49: 0.33 | E49: =C49*D49 -> 0 | F49: Taxi Fuel Consumption 5L (3,6 kg)
A50: Take-Off Weight (Max.1043Kg) | C50: =(C48-C49) -> 695.8 | E50: =(E48-E49) -> 768 | F50: g CHECK in Moment Envelope
A51: Trip FUEL | C51: =B51*0.72 -> 0 | D51: 0.33 | E51: =C51*D51 -> 0 | F51: Trip Fuel Consumption: 40 ltr per hour
A52: Landing Weight | C52: =C50-C51 -> 695.8 | E52: =E50-E51 -> 768 | F52: ¨ CHECK in Moment Envelope
A54: Check latest M&B report in Aircraft ships papers for validity before using computed loadsheet.
A55: revision 06/10/2021 ACM

Sheet Instructeurs
A1: Naam | B1: Gewicht | C1: Lengte
A2: R. den Hartog | B2: 85 | C2: 1.8
A3: C. Petrus
A4: P. de Hondt | B4: 95 | C4: 1.9
A5: C. Cocheret
A6: B. Sindram | B6: 65 | C6: 1.76
A7: J. Mooijman | B7: 64 | C7: 1.75

Sheet Envelope Aquila A210 (hidden)
A1: Normal Category | C1: Utility Category
A2: weight | B2: moment | C2: weight | D2: moment
A3: 540 | B3: 235
A4: 750 | B4: 320
A5: 750 | B5: 390
A6: 540 | B6: 290

Sheet Envelope Cessna C172 (hidden)
A1: Normal Category | D1: Utility Category
A2: weight | B2: Arm | C2: moment | D2: weight | E2: Arm | F2: moment
A3: 600 | B3: 0.89 | C3: =A3*B3 -> 534 | D3: 600 | E3: 0.89 | F3: =D3*E3 -> 534
A4: 885 | B4: 0.89 | C4: =A4*B4 -> 787.65 | D4: 885 | E4: 0.89 | F4: =D4*E4 -> 787.65
A5: 1089 | B5: 1 | C5: 1089 | D5: 953 | E5: 0.93 | F5: 886.29
A6: 1089 | B6: 1.2 | C6: 1306.8 | D6: 953 | E6: 1.03 | F6: 981.59
A7: 885 | B7: 1.2 | C7: 1062 | D7: 996 | E7: 1.03 | F7: 1025.88
A8: 600 | B8: 1.2 | C8: 720 | D8: 600 | E8: 1.03 | F8: 618
A9: 600 | B9: 0.89 | C9: 534 | D9: 600 | E9: 0.89 | F9: 534
